{"text_format":"1","workbook":"xlsx","n_sheets":1,"sheets":["継続事業一括認可事業に関する照会"],"not_rendered":{"charts":0,"images":3,"macros":1,"external_links":0,"defined_names":23,"comments":0,"pivot_tables":0},"unopened":[],"bounds":{"document_bytes":16777216,"sheet_cells":100000,"rows_first":2000,"rows_last":500,"rows_between":2000,"halvings":0,"cell_chars":16384,"cell_head_chars":4096},"cells_cut":0,"cells_raw":0,"read":"whole","date_system":"1900"}

{"sheet":"継続事業一括認可事業に関する照会","index":0,"n_rows":58,"n_cols":53,"rows_kept":58,"cut":false,"hidden":false,"merged":[[41,6,41,9],[41,11,41,14],[41,16,41,20],[1,2,2,3],[1,4,2,20],[32,16,32,20],[32,11,32,14],[32,6,32,9],[8,2,9,20],[18,6,18,20],[39,6,39,20],[40,6,40,20],[28,6,28,20],[29,6,29,20],[15,2,16,5],[32,2,32,5],[1,43,1,54],[57,46,57,54],[54,24,55,51],[15,29,15,30],[15,31,15,32],[15,24,16,28],[16,31,16,32],[33,40,33,51],[37,33,37,38],[50,24,51,52],[31,37,31,51],[32,34,32,39],[33,34,33,39],[32,40,32,51],[47,34,47,36],[47,37,47,51],[48,37,48,51],[10,26,11,51],[24,26,25,51],[28,34,28,36],[29,34,29,36],[30,34,30,36],[28,37,28,51],[29,37,29,51],[30,37,30,51],[28,29,28,32],[45,29,45,32],[45,34,45,36],[45,37,45,51],[39,29,39,32],[39,34,39,36],[39,37,39,51],[40,34,40,36],[40,37,40,51],[46,34,46,36],[46,37,46,51],[20,29,20,42],[41,34,41,39],[41,40,41,51],[43,23,43,52],[6,29,6,42],[6,24,6,27],[20,24,20,28],[13,24,13,36],[17,29,17,43],[18,29,18,43],[17,24,17,28],[18,24,18,28],[15,41,15,43],[15,33,15,34],[15,35,15,40],[4,25,4,49],[4,6,4,11],[46,5,46,10],[46,3,46,4],[4,2,4,5],[39,2,41,2],[17,2,17,5],[18,2,18,5],[24,2,25,20],[41,3,41,5],[39,3,39,5],[40,3,40,5],[28,3,28,5],[29,3,29,5],[10,2,11,20],[33,6,33,20],[33,2,33,5],[22,2,23,20],[15,6,16,20],[30,3,30,5],[28,2,30,2],[30,6,30,20],[17,6,17,20]]}
[]
[null,null,null,null,"の枠に必要事項を入力してください。",null,null,null,null,null,null,null,null,null,null,null,null,null,null,null,null,null,null,null,null,null,null,null,null,null,null,null,null,null,null,null,null,null,null,null,null,null,null,{"$f":"IF(入力_労働保険番号=\"\",\"令和       年        月        日\",DBCS(照会日_元号&\"\"&TEXT(照会日_,\"e\")&\"年\"&TEXT(照会日_,\"m\")&\"月\"&TEXT(照会日_,\"d\")&\"日\"))","v":"令和       年        月        日"}]
[null,null,null,null,null,null,null,null,null,null,null,null,null,null,null,null,null,null,null,null,null,null,null,null,"山梨労働局長 殿"]
[]
[null,null,"照会日→",null,null,null,null,null,null,null,null,null,null,null,null,null,null,null,null,null,null,null,null,null,null,"労働保険継続事業一括認可事業に関する照会について"]
[]
[null,null,null,null,null,null,null,null,null,null,null,null,null,null,null,null,null,null,null,null,null,null,null,{"$f":"\"１\"","v":"１"},"照会理由",null,null,null,null,"(必要なものをチェック☑してください。)"]
[null,null,null,null,null,null,null,null,null,null,null,null,null,null,null,null,null,null,null,null,null,null,null,null,{"$f":"IF(照会理由=\"\",\"☑\",\"□\")","v":"☑"},"指定事業に一括されている被一括事業場の確認のため"]
[null,null,"照会理由：具体的な内容を記入してください。",null,null,null,null,null,null,null,null,null,null,null,null,null,null,null,null,null,null,null,null,null,{"$f":"IF(照会理由=\"\",\"□\",\"☑\")","v":"□"},"その他 （具体的な内容を記入してください)"]
[]
[null,null,null,null,null,null,null,null,null,null,null,null,null,null,null,null,null,null,null,null,null,null,null,null,null,null,{"$f":"IF(照会理由=\"\",\"\",照会理由)","v":""}]
[]
[]
[null,null,null,null,null,null,null,null,null,null,null,null,null,null,null,null,null,null,null,null,null,null,null,{"$f":"\"２\"","v":"２"},"指定を受けている事業（指定事業）"]
[]
[null,null,"労働保険\n番号(14桁)",null,null,null,null,null,null,null,null,null,null,null,null,null,null,null,null,null,null,null,null,null,"労働保険番号",null,null,null,null,"府県",null,"所掌",null,"管轄",null,"基幹番号",null,null,null,null,null,"枝番号"]
[null,null,null,null,null,null,null,null,null,null,null,null,null,null,null,null,null,null,null,null,null,null,null,null,null,null,null,null,null,{"$f":"DBCS(MID(入力_労働保険番号,1,1))","v":""},{"$f":"DBCS(MID(入力_労働保険番号,2,1))","v":""},{"$f":"DBCS(MID(入力_労働保険番号,3,1))","v":""},null,{"$f":"DBCS(MID(入力_労働保険番号,4,1))","v":""},{"$f":"DBCS(MID(入力_労働保険番号,5,1))","v":""},{"$f":"DBCS(MID(入力_労働保険番号,6,1))","v":""},{"$f":"DBCS(MID(入力_労働保険番号,7,1))","v":""},{"$f":"DBCS(MID(入力_労働保険番号,8,1))","v":""},{"$f":"DBCS(MID(入力_労働保険番号,9,1))","v":""},{"$f":"DBCS(MID(入力_労働保険番号,10,1))","v":""},{"$f":"DBCS(MID(入力_労働保険番号,11,1))","v":""},{"$f":"DBCS(MID(入力_労働保険番号,12,1))","v":""},{"$f":"DBCS(MID(入力_労働保険番号,13,1))","v":""},{"$f":"DBCS(MID(入力_労働保険番号,14,1))","v":""}]
[null,null,"所在地",null,null,null,null,null,null,null,null,null,null,null,null,null,null,null,null,null,null,null,null,null,"所在地",null,null,null,null,{"$f":"IF(指定事業_所在地=\"\",IF(入力_労働保険番号=\"\",\"\",\"指定事業の所在地を入力してください\"),DBCS(指定事業_所在地))","v":""}]
[null,null,"名称",null,null,null,null,null,null,null,null,null,null,null,null,null,null,null,null,null,null,null,null,null,"名　　称",null,null,null,null,{"$f":"IF(指定事業_名称=\"\",IF(入力_労働保険番号=\"\",\"\",\"指定事業の名称を入力してください\"),指定事業_名称)","v":""}]
[]
[null,null,null,null,null,null,null,null,null,null,null,null,null,null,null,null,null,null,null,null,null,null,null,{"$f":"\"３\"","v":"３"},"照会の区分",null,null,null,null,"(必要なものをチェック☑してください。)"]
[null,null,null,null,null,null,null,null,null,null,null,null,null,null,null,null,null,null,null,null,null,null,null,null,{"$f":"IF(照会区分_その他=\"\",\"☑\",\"□\")","v":"☑"},null,"全ての被一括事業を照会"]
[null,null,"その他（照会したい管轄地域、整理番号等)",null,null,null,null,null,null,null,null,null,null,null,null,null,null,null,null,null,null,null,null,null,{"$f":"IF(照会区分_その他=\"\",\"□\",\"☑\")","v":"□"},null,"その他（照会したい管轄地域、整理番号等を記載してください。)"]
[]
[null,null,null,null,null,null,null,null,null,null,null,null,null,null,null,null,null,null,null,null,null,null,null,null,null,null,{"$f":"IF(照会区分_その他=\"\",\"\",照会区分_その他)","v":""}]
[]
[]
[]
[null,null,"事\n業\n主","所在地",null,null,null,null,null,null,null,null,null,null,null,null,null,null,null,null,null,null,null,null,null,null,null,null,null,"事業主",null,null,null,null,"所在地",null,null,{"$f":"IF(事業主_所在地=\"\",\"\",DBCS(事業主_所在地))","v":""}]
[null,null,null,"名   称",null,null,null,null,null,null,null,null,null,null,null,null,null,null,null,null,null,null,null,null,null,null,null,null,null,null,null,null,null,null,"名   称",null,null,{"$f":"IF(事業主_名称=\"\",\"\",事業主_名称)","v":""}]
[null,null,null,"氏   名",null,null,null,null,null,null,null,null,null,null,null,null,null,null,null,null,null,null,null,null,null,null,null,null,null,null,null,null,null,null,"氏   名",null,null,{"$f":"IF(事業主_氏名=\"\",\"\",事業主_氏名)","v":""}]
[null,null,null,null,null,null,null,null,null,null,null,null,null,null,null,null,null,null,null,null,null,null,null,null,null,null,null,null,null,null,null,null,null,null,null,null,null,"(法人の場合は代表者職名及び氏名)"]
[null,null,"連絡先電話",null,null,null,null,null,null,null,"-",null,null,null,null,"-",null,null,null,null,null,null,null,null,null,null,null,null,null,null,null,null,null,null,"連絡先電話番号",null,null,null,null,null,{"$f":"IF(連絡先_電話市外&連絡先_電話市内&連絡先_電話番号=\"\",\"\",DBCS(連絡先_電話市外&\"-\"&連絡先_電話市内&\"-\"&連絡先_電話番号))","v":""}]
[null,null,"担当者名",null,null,null,null,null,null,null,null,null,null,null,null,null,null,null,null,null,null,null,null,null,null,null,null,null,null,null,null,null,null,null,"担当者　氏名",null,null,null,null,null,{"$f":"IF(連絡先_担当者=\"\",\"\",連絡先_担当者)","v":""}]
[]
[null,null,null,null,null,null,null,null,null,null,null,null,null,null,null,null,null,null,null,null,null,null,null,null,"代理人により照会をする場合は、以下にも記入願います。"]
[]
[null,null,null,null,null,null,null,null,null,null,null,null,null,null,null,null,null,null,null,null,null,null,null,null,null,null,null,null,null,null,null,null,null,"委 任 状"]
[]
[null,null,"代\n理\n人","住  所",null,null,null,null,null,null,null,null,null,null,null,null,null,null,null,null,null,null,null,null,null,null,null,null,null,"代理人",null,null,null,null,"住  所",null,null,{"$f":"IF(代理人_住所=\"\",\"\",代理人_住所)","v":""}]
[null,null,null,"氏  名",null,null,null,null,null,null,null,null,null,null,null,null,null,null,null,null,null,null,null,null,null,null,null,null,null,null,null,null,null,null,"氏  名",null,null,{"$f":"IF(代理人_氏名=\"\",\"\",代理人_氏名)","v":""}]
[null,null,null,"電話番号",null,null,null,null,null,null,"-",null,null,null,null,"-",null,null,null,null,null,null,null,null,null,null,null,null,null,null,null,null,null,null,"連絡先電話番号",null,null,null,null,null,{"$f":"IF(代理人_電話市外&代理人_電話市内&代理人_電話番号=\"\",\"\",DBCS(代理人_電話市外&\"-\"&代理人_電話市内&\"-\"&代理人_電話番号))","v":""}]
[]
[null,null,null,null,null,null,null,null,null,null,null,null,null,null,null,null,null,null,null,null,null,null,null,"上記の者を代理人と定め、労働保険継続事業一括認可等の照会に関することを委任します。"]
[]
[null,null,null,null,null,null,null,null,null,null,null,null,null,null,null,null,null,null,null,null,null,null,null,null,null,null,null,null,null,"事業主",null,null,null,null,"所在地",null,null,{"$f":"IF(代理人_住所<>\"\",IF(代理人_氏名<>\"\",DBCS(事業主_所在地),\"代理人住所？\"),IF(代理人_氏名=\"\",\"\",\"代理人氏名？\"))","v":""}]
[null,null,null,"令和",null,{"$f":"IF(入力日=\"\",TODAY(),入力日)","v":"2022-10-04"},null,null,null,null,null,null,null,null,null,null,null,null,null,null,null,null,null,null,null,null,null,null,null,null,null,null,null,null,"名   称",null,null,{"$f":"IF(代理人_住所<>\"\",IF(代理人_氏名<>\"\",事業主_名称,\"代理人住所？\"),IF(代理人_氏名=\"\",\"\",\"代理人氏名？\"))","v":""}]
[null,null,null,null,null,null,null,null,null,null,null,null,null,null,null,null,null,null,null,null,null,null,null,null,null,null,null,null,null,null,null,null,null,null,"氏   名",null,null,{"$f":"IF(代理人_住所<>\"\",IF(代理人_氏名<>\"\",事業主_氏名,\"代理人住所？\"),IF(代理人_氏名=\"\",\"\",\"代理人氏名？\"))","v":""},null,null,null,null,null,null,null,null,null,null,null,null,null,null,"印"]
[null,null,null,null,null,null,null,null,null,null,null,null,null,null,null,null,null,null,null,null,null,null,null,null,null,null,null,null,null,null,null,null,null,null,null,null,null,"(法人の場合は代表者職名及び氏名)"]
[]
[null,null,null,null,null,null,null,null,null,null,null,null,null,null,null,null,null,null,null,null,null,null,null,null,"代理人が社会保険労務士・労働保険事務組合の場合、事務委託に関する契約書等の写しの添付で委任状に代えることができる。"]
[]
[]
[]
[null,null,null,null,null,null,null,null,null,null,null,null,null,null,null,null,null,null,null,null,null,null,null,null,"本照会は、山梨労働局労働保険徴収室（〒400-8577 甲府市丸の内１－１－１１）に提出してください。なお、切手を貼付した返信用封筒を合わせて提出してください。"]
[]
[]
[null,null,null,null,null,null,null,null,null,null,null,null,null,null,null,null,null,null,null,null,null,null,null,null,null,null,null,null,null,null,null,null,null,null,null,null,null,null,null,null,null,null,null,null,null,null,"山梨労働局様式(0408)"]